[Event "Live Chess"]
[Site "Chess.com"]
[Date "2023.05.20"]
[Round "-"]
[White "Bob2pen"]
[Black "MartaMost"]
[Result "1-0"]
[WhiteElo "1827"]
[BlackElo "857"]
[TimeControl "300"]
[EndTime "9:44:23 PDT"]
[Termination "Bob2pen won by checkmate"]

1. c4 {[%clk 0:04:57.6]} 1... e5 {[%clk 0:04:57.3]} 2. g3 {[%clk 0:04:56.7]}
2... Nc6 {[%clk 0:04:48.9]} 3. Bg2 {[%clk 0:04:55.3]} 3... Nf6 {[%clk
0:04:44.8]} 4. Nc3 {[%clk 0:04:53.7]} 4... Bb4 {[%clk 0:04:40.9]} 5. Nf3 {[%clk
0:04:51.4]} 5... Bxc3 {[%clk 0:04:38.9]} 6. bxc3 {[%clk 0:04:50]} 6... d5 {[%clk
0:04:16.3]} 7. cxd5 {[%clk 0:04:45.3]} 7... Qxd5 {[%clk 0:04:06.3]} 8. O-O
{[%clk 0:04:43.8]} 8... Bg4 {[%clk 0:03:55]} 9. Qb3 {[%clk 0:04:41.4]} 9... Qxb3
{[%clk 0:03:47.7]} 10. axb3 {[%clk 0:04:39.2]} 10... Bxf3 {[%clk 0:03:45.9]} 11.
Bxf3 {[%clk 0:04:37.6]} 11... Na5 {[%clk 0:03:42.9]} 12. b4 {[%clk 0:04:33.5]}
12... Nb3 {[%clk 0:03:40.4]} 13. Ra3 {[%clk 0:04:31.4]} 13... Nxc1 {[%clk
0:03:37.5]} 14. Rxc1 {[%clk 0:04:29.8]} 14... e4 {[%clk 0:03:27.6]} 15. Bg2
{[%clk 0:04:27.2]} 15... Rd8 {[%clk 0:03:21.4]} 16. Rxa7 {[%clk 0:04:20]} 16...
c6 {[%clk 0:03:09.6]} 17. Rxb7 {[%clk 0:04:17.3]} 17... Rxd2 {[%clk 0:03:08.2]}
18. Rc7 {[%clk 0:04:08.5]} 18... Rxe2 {[%clk 0:03:05.4]} 19. Rc8+ {[%clk
0:04:06.6]} 19... Ke7 {[%clk 0:03:01]} 20. Rxh8 {[%clk 0:04:04.8]} 20... h6
{[%clk 0:02:58.7]} 21. Rc8 {[%clk 0:04:00.4]} 21... Ng4 {[%clk 0:02:57.1]} 22.
Rf1 {[%clk 0:03:51.5]} 22... Ne5 {[%clk 0:02:36.3]} 23. h4 {[%clk 0:03:45.3]}
23... Rc2 {[%clk 0:02:26.7]} 24. Bxe4 {[%clk 0:03:41.1]} 24... Rxc3 {[%clk
0:02:22.7]} 25. b5 {[%clk 0:03:39.9]} 25... Rc4 {[%clk 0:02:16]} 26. Bxc6 {[%clk
0:03:36.6]} 26... Nxc6 {[%clk 0:02:11.2]} 27. Rxc6 {[%clk 0:03:34]} 27... Rxc6
{[%clk 0:02:06.4]} 28. bxc6 {[%clk 0:03:32.7]} 28... Kd8 {[%clk 0:02:04.9]} 29.
Rc1 {[%clk 0:03:29.6]} 29... Kc7 {[%clk 0:02:03.4]} 30. Kg2 {[%clk 0:03:28.9]}
30... f5 {[%clk 0:02:00.6]} 31. Kf3 {[%clk 0:03:28]} 31... g5 {[%clk 0:01:58.3]}
32. hxg5 {[%clk 0:03:26.3]} 32... hxg5 {[%clk 0:01:57.5]} 33. Ke3 {[%clk
0:03:25.7]} 33... f4+ {[%clk 0:01:56.2]} 34. gxf4 {[%clk 0:03:24.8]} 34... gxf4+
{[%clk 0:01:52.4]} 35. Kxf4 {[%clk 0:03:23.9]} 35... Kd6 {[%clk 0:01:47]} 36. c7
{[%clk 0:03:22.2]} 36... Kd7 {[%clk 0:01:45.6]} 37. c8=Q+ {[%clk 0:03:20.4]}
37... Kd6 {[%clk 0:01:44]} 38. Rc6+ {[%clk 0:03:18.3]} 38... Kd5 {[%clk
0:01:42.8]} 39. Qd7# {[%clk 0:03:16.3]} 1-0

[Event "Live Chess"]
[Site "Chess.com"]
[Date "2023.05.20"]
[Round "-"]
[White "Rusty_Bridges"]
[Black "chrisbradgate"]
[Result "0-1"]
[WhiteElo "1323"]
[BlackElo "845"]
[TimeControl "300"]
[EndTime "9:44:26 PDT"]
[Termination "chrisbradgate won by resignation"]

1. e4 {[%clk 0:04:57.2]} 1... e5 {[%clk 0:04:58]} 2. f4 {[%clk 0:04:55.8]} 2...
exf4 {[%clk 0:04:55.2]} 3. Nf3 {[%clk 0:04:54.9]} 3... Nc6 {[%clk 0:04:52.3]} 4.
Bc4 {[%clk 0:04:54.2]} 4... h6 {[%clk 0:04:50]} 5. d4 {[%clk 0:04:51.4]} 5... d6
{[%clk 0:04:42]} 6. Bxf4 {[%clk 0:04:48.9]} 6... Bg4 {[%clk 0:04:40.3]} 7. O-O
{[%clk 0:04:46.6]} 7... Bxf3 {[%clk 0:04:36.8]} 8. Rxf3 {[%clk 0:04:42.9]} 8...
Qd7 {[%clk 0:04:35.8]} 9. Be3 {[%clk 0:04:36.5]} 9... O-O-O {[%clk 0:04:34.4]}
10. Rxf7 {[%clk 0:04:33.6]} 10... Qe8 {[%clk 0:04:09.5]} 11. Qf3 {[%clk
0:04:20.7]} 11... Nf6 {[%clk 0:03:52.4]} 12. e5 {[%clk 0:04:15.8]} 12... dxe5
{[%clk 0:03:48.8]} 13. dxe5 {[%clk 0:04:10.5]} 13... Nxe5 {[%clk 0:03:46.3]} 14.
Qf5+ {[%clk 0:04:08.2]} 14... Rd7 {[%clk 0:03:33.3]} 15. Rxd7 {[%clk 0:04:06]}
15... Qxd7 {[%clk 0:03:29.6]} 16. Qxe5 {[%clk 0:04:00.5]} 16... Ng4 {[%clk
0:03:21.5]} 17. Bd4 {[%clk 0:03:45.6]} 17... Nxe5 {[%clk 0:03:18.6]} 18. Bxe5
{[%clk 0:03:41]} 18... Qd1+ {[%clk 0:03:10.6]} 19. Bf1 {[%clk 0:03:38.6]} 19...
Bc5+ {[%clk 0:03:04.5]} 0-1

[Event "Live Chess"]
[Site "Chess.com"]
[Date "2023.05.20"]
[Round "-"]
[White "john_chandler"]
[Black "AwesomeFredster"]
[Result "0-1"]
[WhiteElo "960"]
[BlackElo "1574"]
[TimeControl "300"]
[EndTime "9:44:28 PDT"]
[Termination "AwesomeFredster won on time"]

1. c4 {[%clk 0:04:57.9]} 1... c5 {[%clk 0:04:57.5]} 2. Nc3 {[%clk 0:04:56.8]}
2... Nc6 {[%clk 0:04:56.5]} 3. e4 {[%clk 0:04:56]} 3... e6 {[%clk 0:04:53.8]} 4.
g3 {[%clk 0:04:55.1]} 4... Nge7 {[%clk 0:04:52.5]} 5. Bg2 {[%clk 0:04:54.3]}
5... g6 {[%clk 0:04:52]} 6. d3 {[%clk 0:04:50.5]} 6... Bg7 {[%clk 0:04:50.9]} 7.
Nge2 {[%clk 0:04:43.6]} 7... O-O {[%clk 0:04:49.8]} 8. O-O {[%clk 0:04:42.7]}
8... f5 {[%clk 0:04:48.6]} 9. Bg5 {[%clk 0:04:27.8]} 9... Bf6 {[%clk 0:04:31.6]}
10. h4 {[%clk 0:04:17.4]} 10... Bxg5 {[%clk 0:04:26.9]} 11. hxg5 {[%clk
0:04:14.7]} 11... fxe4 {[%clk 0:04:25.5]} 12. Nxe4 {[%clk 0:04:08.8]} 12... Nd4
{[%clk 0:04:17.3]} 13. f4 {[%clk 0:03:58.3]} 13... Nec6 {[%clk 0:03:55.9]} 14.
N2c3 {[%clk 0:03:32.8]} 14... e5 {[%clk 0:03:45.9]} 15. Nd5 {[%clk 0:03:07.2]}
15... Ne7 {[%clk 0:03:34.8]} 16. Nd6 {[%clk 0:02:47]} 16... Nxd5 {[%clk
0:03:25.6]} 17. Bxd5+ {[%clk 0:02:43.4]} 17... Kg7 {[%clk 0:03:14.2]} 18. Qg4
{[%clk 0:02:21.8]} 18... exf4 {[%clk 0:02:56.2]} 19. gxf4 {[%clk 0:01:52.9]}
19... Nc2 {[%clk 0:02:30.1]} 20. Rab1 {[%clk 0:00:58]} 20... Ne3 {[%clk
0:02:26.7]} 21. Qh4 {[%clk 0:00:45.8]} 21... Nxf1 {[%clk 0:02:24.9]} 22. Qh6+
{[%clk 0:00:43.8]} 22... Kh8 {[%clk 0:02:16.3]} 23. Rxf1 {[%clk 0:00:37.1]}
23... Qe7 {[%clk 0:01:59.8]} 24. Nf7+ {[%clk 0:00:18.4]} 24... Rxf7 {[%clk
0:01:58.1]} 25. Bxf7 {[%clk 0:00:16]} 25... Qxf7 {[%clk 0:01:57.2]} 26. Rf2
{[%clk 0:00:13.1]} 26... b6 {[%clk 0:01:46.5]} 27. Kg2 {[%clk 0:00:11.9]} 27...
Bb7+ {[%clk 0:01:45.5]} 28. Kg3 {[%clk 0:00:10.4]} 28... d5 {[%clk 0:01:44.6]}
29. b3 {[%clk 0:00:08.9]} 29... dxc4 {[%clk 0:01:42.8]} 30. bxc4 {[%clk
0:00:08.2]} 30... Rd8 {[%clk 0:01:39.2]} 31. Rf3 {[%clk 0:00:06.5]} 31... Qg7
{[%clk 0:01:31.6]} 32. Qxg7+ {[%clk 0:00:04.1]} 32... Kxg7 {[%clk 0:01:30.6]}
33. Re3 {[%clk 0:00:02.5]} 33... Kf7 {[%clk 0:01:26.6]} 0-1

[Event "Live Chess"]
[Site "Chess.com"]
[Date "2023.05.20"]
[Round "-"]
[White "Tilbs_12"]
[Black "IanCalvert2"]
[Result "0-1"]
[WhiteElo "1591"]
[BlackElo "1641"]
[TimeControl "300"]
[EndTime "9:44:32 PDT"]
[Termination "IanCalvert2 won by resignation"]

1. e4 {[%clk 0:04:58.3]} 1... d5 {[%clk 0:04:57.7]} 2. exd5 {[%clk 0:04:56.5]}
2... Qxd5 {[%clk 0:04:56.2]} 3. Nc3 {[%clk 0:04:54.7]} 3... Qd6 {[%clk
0:04:54.3]} 4. Bc4 {[%clk 0:04:49.7]} 4... Nf6 {[%clk 0:04:51.4]} 5. h3 {[%clk
0:04:48.4]} 5... a6 {[%clk 0:04:48.5]} 6. Nf3 {[%clk 0:04:46.8]} 6... b5 {[%clk
0:04:46.4]} 7. Bb3 {[%clk 0:04:45.8]} 7... Bb7 {[%clk 0:04:45.5]} 8. O-O {[%clk
0:04:39.9]} 8... c5 {[%clk 0:04:42.6]} 9. a4 {[%clk 0:04:30.7]} 9... b4 {[%clk
0:04:29.6]} 10. Na2 {[%clk 0:04:24]} 10... e6 {[%clk 0:04:27.2]} 11. d3 {[%clk
0:04:09.2]} 11... Nc6 {[%clk 0:04:22.8]} 12. Be3 {[%clk 0:04:06.8]} 12... Be7
{[%clk 0:04:15.4]} 13. Nc1 {[%clk 0:03:55.4]} 13... Nd4 {[%clk 0:04:01.4]} 14.
Nxd4 {[%clk 0:03:47.4]} 14... cxd4 {[%clk 0:03:57.7]} 15. Bd2 {[%clk 0:03:46.5]}
15... a5 {[%clk 0:03:50.6]} 16. Ne2 {[%clk 0:03:41.4]} 16... Qb6 {[%clk
0:03:46]} 17. Bf4 {[%clk 0:03:28.3]} 17... O-O {[%clk 0:03:39.7]} 18. Be5 {[%clk
0:03:26.3]} 18... Rfd8 {[%clk 0:03:37.2]} 19. Qd2 {[%clk 0:03:13.1]} 19... h6
{[%clk 0:03:20.4]} 20. Qf4 {[%clk 0:03:06.7]} 20... Nd5 {[%clk 0:03:16.8]} 21.
Qg4 {[%clk 0:02:59.6]} 21... Bf6 {[%clk 0:03:11.7]} 22. Bf4 {[%clk 0:02:29.6]}
22... Kh7 {[%clk 0:02:04]} 23. Bxd5 {[%clk 0:02:06.7]} 23... Bxd5 {[%clk
0:01:57.6]} 24. Rfe1 {[%clk 0:01:45.5]} 24... e5 {[%clk 0:01:40.9]} 25. Bd2
{[%clk 0:01:40.8]} 25... Qe6 {[%clk 0:01:35.2]} 26. Qg3 {[%clk 0:01:34.9]} 26...
Qf5 {[%clk 0:01:29.1]} 27. f4 {[%clk 0:01:30.4]} 27... e4 {[%clk 0:01:18]} 28.
dxe4 {[%clk 0:01:17.1]} 28... Bxe4 {[%clk 0:01:15.9]} 29. c3 {[%clk 0:00:57.9]}
29... dxc3 {[%clk 0:01:10.9]} 30. bxc3 {[%clk 0:00:56.5]} 30... Rxd2 {[%clk
0:01:08.6]} 31. cxb4 {[%clk 0:00:46.5]} 31... Bxa1 {[%clk 0:01:05.6]} 32. Rxa1
{[%clk 0:00:42.5]} 32... Rxe2 {[%clk 0:01:03.2]} 33. b5 {[%clk 0:00:36.7]} 33...
Bb7 {[%clk 0:00:53.9]} 34. Rc1 {[%clk 0:00:29.8]} 34... Rxg2+ {[%clk 0:00:50.7]}
0-1

[Event "Live Chess"]
[Site "Chess.com"]
[Date "2023.05.20"]
[Round "-"]
[White "bedsdrout"]
[Black "daveeeeR"]
[Result "0-1"]
[WhiteElo "471"]
[BlackElo "1255"]
[TimeControl "300"]
[EndTime "9:44:33 PDT"]
[Termination "daveeeeR won on time"]

1. e4 {[%clk 0:04:56.4]} 1... g6 {[%clk 0:04:58]} 2. Bc4 {[%clk 0:04:53.7]} 2...
Bg7 {[%clk 0:04:57.9]} 3. Qf3 {[%clk 0:04:50.3]} 3... e6 {[%clk 0:04:56.5]} 4.
Bb3 {[%clk 0:04:32.7]} 4... Nc6 {[%clk 0:04:53.4]} 5. Nc3 {[%clk 0:04:29.2]}
5... Nd4 {[%clk 0:04:52.1]} 6. Qf4 {[%clk 0:04:22.4]} 6... Nxb3 {[%clk
0:04:48.6]} 7. cxb3 {[%clk 0:04:17]} 7... Ne7 {[%clk 0:04:46.6]} 8. Nf3 {[%clk
0:04:10.8]} 8... O-O {[%clk 0:04:45.2]} 9. Qh4 {[%clk 0:03:57.8]} 9... Qe8
{[%clk 0:04:39]} 10. Ng5 {[%clk 0:03:55.9]} 10... h6 {[%clk 0:04:36.7]} 11. Nf3
{[%clk 0:03:43.4]} 11... Kh7 {[%clk 0:04:33.5]} 12. d3 {[%clk 0:03:38.8]} 12...
h5 {[%clk 0:04:24.3]} 13. Qf4 {[%clk 0:03:26.8]} 13... Ng8 {[%clk 0:04:21.4]}
14. Ne5 {[%clk 0:03:22]} 14... Bh6 {[%clk 0:04:12.4]} 15. Qf3 {[%clk 0:03:02.9]}
15... Bxc1 {[%clk 0:04:10.2]} 16. O-O {[%clk 0:02:55.7]} 16... Bh6 {[%clk
0:04:05.9]} 17. Qg3 {[%clk 0:02:41.6]} 17... d6 {[%clk 0:04:02.2]} 18. Nf3
{[%clk 0:02:16.4]} 18... Qe7 {[%clk 0:03:53]} 19. e5 {[%clk 0:02:13.8]} 19... d5
{[%clk 0:03:48.5]} 20. Nxd5 {[%clk 0:02:04.9]} 20... exd5 {[%clk 0:03:46.4]} 21.
Nh4 {[%clk 0:01:53.1]} 21... Be6 {[%clk 0:03:32.5]} 22. Rac1 {[%clk 0:01:44]}
22... c6 {[%clk 0:03:30.5]} 23. Nxg6 {[%clk 0:01:38.8]} 23... fxg6 {[%clk
0:03:26.8]} 24. Rce1 {[%clk 0:01:31.2]} 24... Rae8 {[%clk 0:03:23.7]} 25. Re3
{[%clk 0:01:27.9]} 25... Bxe3 {[%clk 0:03:16.7]} 26. fxe3 {[%clk 0:01:25.5]}
26... Rxf1+ {[%clk 0:03:15.5]} 27. Kxf1 {[%clk 0:01:22.4]} 27... Qf7+ {[%clk
0:03:13.7]} 28. Ke2 {[%clk 0:01:19.7]} 28... Bg4+ {[%clk 0:03:11.9]} 29. Kd2
{[%clk 0:01:12.1]} 29... Nh6 {[%clk 0:03:10.5]} 30. e6 {[%clk 0:01:08.8]} 30...
Qxe6 {[%clk 0:03:08.2]} 31. Qc7+ {[%clk 0:00:53.6]} 31... Re7 {[%clk 0:03:05.9]}
32. Qc8 {[%clk 0:00:48.9]} 32... Qxe3+ {[%clk 0:03:04]} 33. Kc3 {[%clk
0:00:43.8]} 33... d4+ {[%clk 0:02:59.6]} 34. Kc4 {[%clk 0:00:41.8]} 34... b5+
{[%clk 0:02:55.4]} 35. Kc5 {[%clk 0:00:40.5]} 35... Qe5+ {[%clk 0:02:49.4]} 36.
Kb4 {[%clk 0:00:38.7]} 36... Qd6+ {[%clk 0:02:32.5]} 37. Ka5 {[%clk 0:00:35.5]}
37... Qc7+ {[%clk 0:02:31.4]} 38. Qxc7 {[%clk 0:00:14.4]} 38... Rxc7 {[%clk
0:02:31.3]} 39. Ka6 {[%clk 0:00:13.1]} 39... Bc8+ {[%clk 0:02:26.5]} 40. Ka5
{[%clk 0:00:07.2]} 40... Nf5 {[%clk 0:02:23.3]} 41. Kb4 {[%clk 0:00:05.3]} 41...
a6 {[%clk 0:02:19.4]} 42. h4 {[%clk 0:00:02.8]} 42... Nxh4 {[%clk 0:02:16.9]}
43. g4 {[%clk 0:00:02]} 43... hxg4 {[%clk 0:02:15.4]} 0-1

[Event "Live Chess"]
[Site "Chess.com"]
[Date "2023.05.20"]
[Round "-"]
[White "akp42"]
[Black "Fazer180"]
[Result "1-0"]
[WhiteElo "1956"]
[BlackElo "1717"]
[TimeControl "300"]
[EndTime "9:44:40 PDT"]
[Termination "akp42 won by resignation"]

1. e4 {[%clk 0:04:57.8]} 1... e6 {[%clk 0:04:59.1]} 2. d4 {[%clk 0:04:56]} 2...
d5 {[%clk 0:04:58.8]} 3. e5 {[%clk 0:04:54.8]} 3... c5 {[%clk 0:04:57.7]} 4. c3
{[%clk 0:04:54.1]} 4... Nc6 {[%clk 0:04:56.6]} 5. Be3 {[%clk 0:04:53]} 5... Qb6
{[%clk 0:04:55.8]} 6. Qd2 {[%clk 0:04:52.1]} 6... Bd7 {[%clk 0:04:52.3]} 7. Nf3
{[%clk 0:04:51]} 7... cxd4 {[%clk 0:04:49.1]} 8. cxd4 {[%clk 0:04:49.4]} 8...
Nge7 {[%clk 0:04:46.7]} 9. Nc3 {[%clk 0:04:43.6]} 9... Nf5 {[%clk 0:04:45]} 10.
Be2 {[%clk 0:04:35.4]} 10... Bb4 {[%clk 0:04:37.7]} 11. O-O {[%clk 0:04:33]}
11... O-O {[%clk 0:04:30.1]} 12. Rac1 {[%clk 0:04:27.9]} 12... Rac8 {[%clk
0:04:27.1]} 13. a3 {[%clk 0:04:12.2]} 13... Nxe3 {[%clk 0:04:19.2]} 14. fxe3
{[%clk 0:04:10.1]} 14... Be7 {[%clk 0:04:02.8]} 15. Kh1 {[%clk 0:04:05.3]} 15...
Na5 {[%clk 0:04:01.6]} 16. Qc2 {[%clk 0:03:35.4]} 16... Nc4 {[%clk 0:03:51.9]}
17. e4 {[%clk 0:03:34.5]} 17... Ne3 {[%clk 0:03:43]} 18. Qd3 {[%clk 0:03:27.5]}
18... Nxf1 {[%clk 0:03:40.8]} 19. Rxf1 {[%clk 0:03:25]} 19... dxe4 {[%clk
0:03:30.6]} 20. Nxe4 {[%clk 0:03:21.8]} 20... Qxb2 {[%clk 0:03:18.3]} 21. Nfg5
{[%clk 0:03:16.4]} 21... h6 {[%clk 0:03:07.7]} 22. Nf6+ {[%clk 0:03:11.4]} 22...
Bxf6 {[%clk 0:02:46.7]} 1-0

[Event "Live Chess"]
[Site "Chess.com"]
[Date "2023.05.20"]
[Round "-"]
[White "SaraTang"]
[Black "ranvir123"]
[Result "0-1"]
[WhiteElo "164"]
[BlackElo "855"]
[TimeControl "300"]
[EndTime "9:44:46 PDT"]
[Termination "ranvir123 won by checkmate"]

1. e3 {[%clk 0:04:58.7]} 1... e5 {[%clk 0:04:57.7]} 2. Bc4 {[%clk 0:04:54.6]}
2... d5 {[%clk 0:04:56.1]} 3. Bxd5 {[%clk 0:04:52.1]} 3... Qxd5 {[%clk
0:04:54.9]} 4. Nf3 {[%clk 0:04:49.3]} 4... Bg4 {[%clk 0:04:52.1]} 5. Nxe5 {[%clk
0:04:47.9]} 5... Bxd1 {[%clk 0:04:49.8]} 6. Kxd1 {[%clk 0:04:42.4]} 6... Qxe5
{[%clk 0:04:47.5]} 7. Re1 {[%clk 0:04:30.9]} 7... Qxh2 {[%clk 0:04:42.8]} 8. Re2
{[%clk 0:04:28.2]} 8... Nc6 {[%clk 0:04:38]} 9. e4 {[%clk 0:04:26.2]} 9... Nd4
{[%clk 0:04:33.7]} 10. Re3 {[%clk 0:04:23.3]} 10... Qg1+ {[%clk 0:04:29.4]} 11.
Re1 {[%clk 0:04:19.2]} 11... Qxf2 {[%clk 0:04:22.3]} 12. Rf1 {[%clk 0:04:15.2]}
12... Qxf1# {[%clk 0:04:20.4]} 0-1

[Event "Live Chess"]
[Site "Chess.com"]
[Date "2023.05.20"]
[Round "-"]
[White "Nazarenko_vital"]
[Black "Kr1xot4_XGOD"]
[Result "1/2-1/2"]
[WhiteElo "1591"]
[BlackElo "2180"]
[TimeControl "300"]
[EndTime "9:44:50 PDT"]
[Termination "Game drawn by agreement"]

1. e4 {[%clk 0:04:57.9]} 1... c5 {[%clk 0:04:56.9]} 2. c3 {[%clk 0:04:56.1]}
2... d5 {[%clk 0:04:53.3]} 3. e5 {[%clk 0:04:54.1]} 3... Nc6 {[%clk 0:04:49.8]}
4. d4 {[%clk 0:04:53.1]} 4... e6 {[%clk 0:04:46.8]} 5. Bb5 {[%clk 0:04:49.4]}
5... Ne7 {[%clk 0:04:43.5]} 6. Nf3 {[%clk 0:04:46.9]} 6... Qa5 {[%clk
0:04:39.8]} 7. Bxc6+ {[%clk 0:04:44.3]} 7... Nxc6 {[%clk 0:04:37.4]} 8. O-O
{[%clk 0:04:43]} 8... Be7 {[%clk 0:04:33.4]} 9. Nbd2 {[%clk 0:04:35.8]} 9...
cxd4 {[%clk 0:04:26.4]} 10. Nb3 {[%clk 0:04:34.7]} 10... Qa4 {[%clk 0:04:23.3]}
11. cxd4 {[%clk 0:04:20.5]} 11... b5 {[%clk 0:04:10.5]} 12. Be3 {[%clk
0:04:08.2]} 12... h6 {[%clk 0:03:55.4]} 13. Qc1 {[%clk 0:03:43]} 13... b4 {[%clk
0:03:44.3]} 14. Nc5 {[%clk 0:03:30.9]} 14... Bxc5 {[%clk 0:03:29.6]} 15. Qxc5
{[%clk 0:03:29.1]} 15... Ba6 {[%clk 0:03:24.6]} 16. Rfc1 {[%clk 0:03:14.8]}
16... Rc8 {[%clk 0:03:16.3]} 17. b3 {[%clk 0:03:04.6]} 17... Qb5 {[%clk
0:03:10.8]} 18. Qd6 {[%clk 0:02:44.7]} 18... Qb6 {[%clk 0:03:06.4]} 19. Rc5
{[%clk 0:02:15.2]} 19... Ne7 {[%clk 0:02:52]} 20. Rac1 {[%clk 0:01:50.7]} 20...
Rd8 {[%clk 0:02:46.1]} 21. Qxb6 {[%clk 0:01:23.5]} 21... axb6 {[%clk 0:02:21.8]}
22. Rc7 {[%clk 0:01:21.6]} 22... Rd7 {[%clk 0:02:19.6]} 23. h3 {[%clk
0:01:16.4]} 23... Kd8 {[%clk 0:02:16.4]} 24. Rxd7+ {[%clk 0:01:07.4]} 24... Kxd7
{[%clk 0:02:14.2]} 25. Bd2 {[%clk 0:01:06.4]} 25... g5 {[%clk 0:01:56.2]} 26.
Bxb4 {[%clk 0:01:04.3]} 26... Nf5 {[%clk 0:01:50.7]} 27. g4 {[%clk 0:00:57.3]}
27... Nh4 {[%clk 0:01:34.7]} 28. Nxh4 {[%clk 0:00:54.1]} 28... gxh4 {[%clk
0:01:34.5]} 29. Bd6 {[%clk 0:00:52.9]} 29... Rc8 {[%clk 0:01:24.5]} 30. Rxc8
{[%clk 0:00:45.4]} 30... Bxc8 {[%clk 0:01:23.4]} 31. f4 {[%clk 0:00:44.5]} 31...
f5 {[%clk 0:01:18.6]} 32. g5 {[%clk 0:00:37.2]} 32... hxg5 {[%clk 0:01:16.9]}
33. fxg5 {[%clk 0:00:36.3]} 33... Ba6 {[%clk 0:01:14.3]} 34. Kf2 {[%clk
0:00:34.7]} 34... Bd3 {[%clk 0:01:08.2]} 35. Kf3 {[%clk 0:00:24.9]} 1/2-1/2

[Event "Live Chess"]
[Site "Chess.com"]
[Date "2023.05.20"]
[Round "-"]
[White "toog"]
[Black "YrrriKharkiv"]
[Result "1-0"]
[WhiteElo "2636"]
[BlackElo "2153"]
[TimeControl "300"]
[EndTime "9:44:54 PDT"]
[Termination "toog won by resignation"]

1. e4 {[%clk 0:04:59.1]} 1... e6 {[%clk 0:04:57.2]} 2. d4 {[%clk 0:04:56]} 2...
d5 {[%clk 0:04:56.2]} 3. Nd2 {[%clk 0:04:54.8]} 3... Nf6 {[%clk 0:04:54.7]} 4.
e5 {[%clk 0:04:53.6]} 4... Nfd7 {[%clk 0:04:53.9]} 5. Ngf3 {[%clk 0:04:53.5]}
5... c5 {[%clk 0:04:52.9]} 6. c3 {[%clk 0:04:53]} 6... Nc6 {[%clk 0:04:52.1]} 7.
Bd3 {[%clk 0:04:52.1]} 7... f6 {[%clk 0:04:51.4]} 8. exf6 {[%clk 0:04:50.1]}
8... Qxf6 {[%clk 0:04:50.5]} 9. O-O {[%clk 0:04:47.8]} 9... Bd6 {[%clk
0:04:49.5]} 10. Re1 {[%clk 0:04:40.5]} 10... O-O {[%clk 0:04:47.1]} 11. Nf1
{[%clk 0:04:38.7]} 11... h6 {[%clk 0:04:39.9]} 12. Ne3 {[%clk 0:04:30.2]} 12...
h5 {[%clk 0:04:19.5]} 13. Bc2 {[%clk 0:04:10.9]} 13... cxd4 {[%clk 0:04:06.7]}
14. cxd4 {[%clk 0:04:09]} 14... g6 {[%clk 0:03:55.8]} 15. a3 {[%clk 0:04:03.3]}
15... Nb6 {[%clk 0:03:47.5]} 16. b3 {[%clk 0:04:00.5]} 16... Bd7 {[%clk
0:03:44]} 17. Bb2 {[%clk 0:03:58.5]} 17... Rae8 {[%clk 0:03:40.7]} 18. Qd3
{[%clk 0:03:56.8]} 18... Kg7 {[%clk 0:03:39.2]} 19. Ne5 {[%clk 0:03:53.3]} 19...
Qxf2+ {[%clk 0:03:33.7]} 20. Kh1 {[%clk 0:03:51.4]} 20... Nxe5 {[%clk
0:03:24.2]} 21. dxe5 {[%clk 0:03:49.4]} 21... Rf5 {[%clk 0:02:50.2]} 22. exd6+
{[%clk 0:03:37.7]} 22... Kh7 {[%clk 0:02:39.8]} 23. Nxf5 {[%clk 0:03:36.5]}
23... Qxf5 {[%clk 0:02:36.2]} 24. Qd4 {[%clk 0:03:33.9]} 24... e5 {[%clk
0:02:30.4]} 25. Bxf5 {[%clk 0:03:29.5]} 25... exd4 {[%clk 0:02:29.1]} 26. Bxd7
{[%clk 0:03:28.7]} 26... Rxe1+ {[%clk 0:02:28]} 27. Rxe1 {[%clk 0:03:27.8]} 1-0

[Event "Live Chess"]
[Site "Chess.com"]
[Date "2023.05.20"]
[Round "-"]
[White "Nico14021974"]
[Black "Daniel_Gliddon_FA"]
[Result "0-1"]
[WhiteElo "608"]
[BlackElo "905"]
[TimeControl "300"]
[EndTime "9:44:57 PDT"]
[Termination "Daniel_Gliddon_FA won by checkmate"]

1. d4 {[%clk 0:04:53.8]} 1... Nf6 {[%clk 0:04:56.5]} 2. Nf3 {[%clk 0:04:49.6]}
2... d6 {[%clk 0:04:54.4]} 3. Nc3 {[%clk 0:04:47.5]} 3... g6 {[%clk 0:04:52.9]}
4. g3 {[%clk 0:04:45.6]} 4... Bg7 {[%clk 0:04:51.4]} 5. Be3 {[%clk 0:04:40.8]}
5... Nbd7 {[%clk 0:04:48.7]} 6. Rc1 {[%clk 0:04:33.8]} 6... e5 {[%clk
0:04:47.2]} 7. dxe5 {[%clk 0:04:32.1]} 7... Nxe5 {[%clk 0:04:45.8]} 8. Nxe5
{[%clk 0:04:29.5]} 8... dxe5 {[%clk 0:04:44.1]} 9. f4 {[%clk 0:04:26.5]} 9...
Qxd1+ {[%clk 0:04:37.7]} 10. Kxd1 {[%clk 0:04:25.2]} 10... exf4 {[%clk
0:04:31.3]} 11. Bxf4 {[%clk 0:04:23.7]} 11... Ne4 {[%clk 0:04:30]} 12. Nxe4
{[%clk 0:04:22.1]} 12... Bf5 {[%clk 0:04:21.2]} 13. g4 {[%clk 0:04:19]} 13...
O-O-O+ {[%clk 0:04:19.2]} 14. Ke1 {[%clk 0:04:11.6]} 14... Bxe4 {[%clk
0:04:17.9]} 15. Rd1 {[%clk 0:04:01.4]} 15... Bxh1 {[%clk 0:04:01.7]} 16. Rd7
{[%clk 0:03:51.9]} 16... Rxd7 {[%clk 0:03:57.5]} 17. Kf2 {[%clk 0:03:47.3]}
17... Bd4+ {[%clk 0:03:49.4]} 18. e3 {[%clk 0:03:39.7]} 18... Bxb2 {[%clk
0:03:46.9]} 19. Kg1 {[%clk 0:03:33.5]} 19... Bc6 {[%clk 0:03:43.4]} 20. Bd3
{[%clk 0:03:19.1]} 20... h5 {[%clk 0:03:31.8]} 21. gxh5 {[%clk 0:03:16.4]} 21...
Rxh5 {[%clk 0:03:27.6]} 22. e4 {[%clk 0:03:06.2]} 22... g5 {[%clk 0:03:21.9]}
23. Bg3 {[%clk 0:03:03.6]} 23... Rh3 {[%clk 0:03:19.4]} 24. Be1 {[%clk 0:02:59]}
24... Bd4+ {[%clk 0:03:15.5]} 25. Kg2 {[%clk 0:02:53.6]} 25... Rh7 {[%clk
0:03:12.7]} 26. Bf2 {[%clk 0:02:48.8]} 26... f5 {[%clk 0:03:09.2]} 27. Bxd4
{[%clk 0:02:45.9]} 27... Rxd4 {[%clk 0:02:54.8]} 28. Be2 {[%clk 0:02:40.5]}
28... fxe4 {[%clk 0:02:53.2]} 29. a3 {[%clk 0:02:36.8]} 29... Rd2 {[%clk
0:02:51.4]} 30. Kf2 {[%clk 0:02:33.7]} 30... Rxc2 {[%clk 0:02:48]} 31. a4 {[%clk
0:02:31.8]} 31... Bxa4 {[%clk 0:02:42.3]} 32. Kf1 {[%clk 0:02:26.8]} 32... e3
{[%clk 0:02:36.8]} 33. Kg2 {[%clk 0:02:21.9]} 33... Rf7 {[%clk 0:02:34.8]} 34.
Kg3 {[%clk 0:02:16.5]} 34... Rxe2 {[%clk 0:02:32.4]} 35. Kh3 {[%clk 0:02:12]}
35... g4+ {[%clk 0:02:28.4]} 36. Kxg4 {[%clk 0:02:09.8]} 36... Rg2+ {[%clk
0:02:27.1]} 37. Kh3 {[%clk 0:02:05.5]} 37... Bc6 {[%clk 0:02:23.6]} 38. Kh4
{[%clk 0:01:52.5]} 38... Rh7# {[%clk 0:02:17.8]} 0-1